fUST/lending_fUST_20250115
["ID","MTS","AMOUNT","RATE_DAILY","PERIOD"]
[348985433,1736916645077,-1080.86,0.00019726,3]
[348985434,1736916645087,-500.0,0.00019726,3]
[348985435,1736916645096,-500.0,0.00019726,3]
[348985436,1736916645106,-500.0,0.00019726,3]
[348985437,1736916645115,-1373.43,0.00019726,3]
[348985438,1736916645124,-500.0,0.00019726,3]
[348985439,1736916645134,-1827.85,0.00019726,3]
[348985440,1736916645143,-500.0,0.00019726,3]
[348985441,1736916645153,-500.0,0.00019726,3]
[348985442,1736916645163,-599.91,0.00019726,3]
[348985443,1736916645172,-500.0,0.00019726,3]
[348985444,1736916645182,-712.76,0.00019726,3]
[348985445,1736916645192,-500.0,0.00019726,3]
[348985446,1736916645202,-807.76,0.00019726,3]
[348985447,1736916645212,-151.0,0.00019726,2]
[348985448,1736916645221,-500.0,0.00019726,3]
[348985449,1736916645231,-684.89,0.00019726,3]
[348985450,1736916645240,-151.0,0.00019726,2]
[348985451,1736916645249,-151.0,0.00019726,2]
[348985452,1736916645259,-153.355007,0.00019726,2]
[348985453,1736916645268,-1567.61,0.00019726,3]
[348985454,1736916645277,-500.0,0.00019726,3]
[348985455,1736916645287,-926.078604,0.00019726,2]
[348985456,1736916645296,-926.078604,0.00019726,2]
[348985457,1736916645306,-500.0,0.00019726,3]
[348985458,1736916645315,-500.0,0.00019726,3]
[348985459,1736916645325,-500.0,0.00019726,3]
[348985460,1736916645334,-757.07,0.00019726,3]
[348985461,1736916645344,-500.0,0.00019726,3]
[348985462,1736916645354,-706.38,0.00019726,3]
[348985463,1736916645363,-500.0,0.00019726,3]
[348985464,1736916645372,-500.0,0.00019726,3]
[348985465,1736916645381,-500.0,0.00019726,3]
[348985466,1736916645391,-500.0,0.00019726,3]
[348985467,1736916645401,-3983.37,0.00019726,3]
[348985468,1736916645411,-1461.541656,0.00019726,2]
[348985469,1736916645421,-1461.541656,0.00019726,2]
[348985470,1736916645431,-1461.541656,0.00019726,2]
[348985471,1736916645441,-500.0,0.00019726,3]
[348985472,1736916645451,-500.0,0.00019726,3]
[348985473,1736916645461,-1461.541656,0.00019726,2]
[348985474,1736916645470,-500.0,0.00019726,3]
[348985475,1736916645481,-500.0,0.00019726,3]
[348985476,1736916645491,-5135.68,0.00019726,2]
[348985479,1736916645597,-4712.04,0.00019726,3]
[348985481,1736916645610,-624.76,0.00019726,3]
[348985483,1736916645620,-500.0,0.00019726,3]
[348985485,1736916645630,-673.49,0.00019726,3]
[348985487,1736916645639,-610.45,0.00019726,3]
[348985489,1736916645648,-550.77,0.00019726,3]
[348985491,1736916645657,-500.0,0.00019726,3]
[348985492,1736916645667,-2486.58,0.00019726,3]
[348985493,1736916645682,-500.0,0.00019726,3]
[348985494,1736916645692,-151.0,0.00019726,2]
[348985495,1736916645701,-500.0,0.00019726,3]
[348985496,1736916645710,-243.22012971,0.00019762,2]
[348985497,1736916645722,-503.528783,0.00019799,2]
[348985498,1736916645733,-1369.54381588,0.000198,2]
[348985499,1736916645744,-1369.54381587,0.000198,2]
[348985500,1736916645754,-1369.54381587,0.000198,2]
[348985501,1736916645763,-1369.54381587,0.000198,2]
[348985502,1736916645774,-151.0,0.000198,2]
[348985503,1736916645783,-151.0,0.000198,2]
[348985504,1736916645792,-151.0,0.00019863,2]
[348985505,1736916645802,-742.49,0.00019863,3]
[348985506,1736916645810,-151.0,0.00019863,2]
[348985507,1736916645820,-500.0,0.00019863,3]
[348985508,1736916645829,-155.18,0.00019863,3]
[348985509,1736916645838,-631.69,0.00019863,3]
[348985511,1736916645848,-500.0,0.00019863,3]
[348985512,1736916645857,-151.0,0.00019863,2]
[348985514,1736916645866,-550.31,0.00019863,3]
[348985516,1736916645875,-500.0,0.00019863,3]
[348985518,1736916645885,-372.72,0.00019863,3]
[348985520,1736916645894,-500.0,0.00019863,3]
[348985522,1736916645904,-500.0,0.00019863,3]
[348985523,1736916645913,-500.0,0.00019863,3]
[348985524,1736916645923,-500.0,0.00019863,3]
[348985525,1736916645932,-500.0,0.00019863,3]
[348985526,1736916645941,-691.61,0.00019863,3]
[348985527,1736916645951,-499.11,0.00019863,3]
[348985528,1736916645965,-500.0,0.00019863,3]
[348985529,1736916645975,-500.0,0.00019863,3]
[348985530,1736916645985,-500.0,0.00019863,3]
[348985531,1736916645994,-474.469349,0.00019863,2]
[348985532,1736916646005,-474.469349,0.00019863,2]
[348985533,1736916646014,-519.78,0.00019863,3]
[348985534,1736916646024,-491.53949118,0.00019863,3]
[348985535,1736916646034,-205.204769,0.00019863,2]
[348985536,1736916646043,-205.204769,0.00019863,2]
[348985537,1736916646052,-500.0,0.00019863,3]
[348985538,1736916646062,-500.0,0.00019863,3]
[348985540,1736916646071,-500.0,0.00019863,3]
[348985541,1736916646081,-500.0,0.00019863,3]
[348985542,1736916646090,-500.0,0.00019863,3]
[348985543,1736916646099,-500.0,0.00019863,3]
[348985544,1736916646109,-633.68,0.00019863,2]
[348985545,1736916646118,-228.219024,0.00019863,2]
[348985547,1736916646127,-228.219024,0.00019863,2]
[348985549,1736916646136,-500.0,0.00019863,3]
[348985551,1736916646146,-3854.09,0.00019863,3]
[348985553,1736916646155,-168.040208,0.00019863,2]
[348985554,1736916646165,-168.040208,0.00019863,2]
[348985555,1736916646174,-168.040208,0.00019863,2]
[348985556,1736916646183,-168.040214,0.00019863,2]
[348985557,1736916646193,-4218.29,0.00019863,3]
[348985558,1736916646202,-500.0,0.00019863,3]
[348985559,1736916646212,-926.75,0.00019863,3]
[348985560,1736916646221,-500.0,0.00019863,3]
[348985561,1736916646231,-1293.58,0.00019863,3]
[348985562,1736916646241,-210.59,0.00019863,3]
[348985563,1736916646250,-500.0,0.00019863,3]
[348985564,1736916646259,-500.0,0.00019863,3]
[348985565,1736916646269,-805.03,0.00019863,3]
[348985566,1736916646278,-500.0,0.00019863,3]
[348985567,1736916646288,-13667.5,0.00019863,3]
[348985568,1736916646298,-655.22,0.00019863,3]
[348985569,1736916646307,-1080.86,0.00019863,3]
[348985570,1736916646317,-362.41969437,0.00019863,3]
[348985571,1736916646326,-500.0,0.00019863,3]
[348985572,1736916646336,-500.0,0.00019863,3]
[348985573,1736916646346,-1373.43,0.00019863,3]
[348985574,1736916646362,-1827.85,0.00019863,3]
[348985575,1736916646372,-500.0,0.00019863,3]
[348985576,1736916646381,-599.91,0.00019863,3]
[348985577,1736916646390,-500.0,0.00019863,3]
[348985578,1736916646400,-712.76,0.00019863,3]
[348985579,1736916646410,-440.64,0.00019863,3]
[348985580,1736916646419,-807.76,0.00019863,3]
[348985581,1736916646429,-151.0,0.00019863,2]
[348985582,1736916646442,-151.0,0.00019863,2]
[348985583,1736916646455,-526.65430389,0.00019863,3]
[348985584,1736916646465,-684.89,0.00019863,3]
[348985585,1736916646474,-151.0,0.00019863,2]
[348985586,1736916646483,-1567.61,0.00019863,3]
[348985587,1736916646493,-500.0,0.00019863,3]
[348985588,1736916646503,-926.078604,0.00019863,2]
[348985589,1736916646513,-926.078604,0.00019863,2]
[348985590,1736916646523,-500.0,0.00019863,3]
[348985591,1736916646532,-500.0,0.00019863,3]
[348985592,1736916646543,-445.8,0.00019863,3]
[348985593,1736916646552,-757.07,0.00019863,3]
[348985594,1736916646562,-500.0,0.00019863,3]
[348985595,1736916646571,-706.38,0.00019863,3]
[348985596,1736916646581,-500.0,0.00019863,3]
[348985597,1736916646590,-500.0,0.00019863,3]
[348985598,1736916646599,-500.0,0.00019863,3]
[348985599,1736916646609,-500.0,0.00019863,3]
[348985600,1736916646619,-3983.37,0.00019863,3]
[348985601,1736916646629,-1461.541656,0.00019863,2]
[348985602,1736916646638,-500.0,0.00019863,3]
[348985603,1736916646648,-1461.541666,0.00019863,2]
[348985604,1736916646657,-500.0,0.00019863,3]
[348985605,1736916646667,-500.0,0.00019863,3]
[348985606,1736916646676,-5135.68,0.00019863,2]
[348985607,1736916646685,-4712.04,0.00019863,3]
[348985608,1736916646695,-624.76,0.00019863,3]
[348985609,1736916646705,-253.22032375,0.00019863,3]
[348985610,1736916646714,-673.49,0.00019863,3]
[348985611,1736916646724,-610.45,0.00019863,3]
[348985612,1736916646734,-550.77,0.00019863,3]
[348985613,1736916646743,-500.0,0.00019863,3]
[348985614,1736916646751,-2486.58,0.00019863,3]
[348985615,1736916646761,-210.0,0.00019863,3]
[348985616,1736916646770,-151.0,0.00019863,2]
[348985617,1736916646779,-500.0,0.00019863,3]
[348985618,1736916646789,-151.0,0.000199,2]
[348985619,1736916646798,-151.0,0.000199,2]
[348985620,1736916646807,-243.22012971,0.00019934,2]
[348985621,1736916646817,-9677.42369375,0.00019972,2]
[348985622,1736916646826,-500.0,0.00019972,2]
[348985623,1736916646835,-500.0,0.00019972,2]
[348985624,1736916646845,-162.0,0.00019975,2]
[348985625,1736916646854,-162.0,0.00019975,2]
[348985626,1736916646864,-162.0,0.00019975,2]
[348985627,1736916646873,-162.0,0.00019975,2]
[348985628,1736916646883,-162.0,0.00019975,2]
[348985629,1736916646892,-162.0,0.00019975,2]
[348985630,1736916646902,-167.91,0.00019975,2]
[348985631,1736916646911,-151.0,0.00019982,2]
[348985632,1736916646921,-926.078604,0.00019982,2]
[348985633,1736916646931,-926.0786,0.00019982,2]
[348985634,1736916646940,-454.55791135,0.00019999,2]
[348985635,1736916646951,-206.540068,0.00019999,2]
[348985636,1736916646965,-13463.88282296,0.00019999,5]
[348985637,1736916646975,-5395.04510311,0.00019999,5]
[348985638,1736916646985,-71744.24667555,0.0002,5]
[348985639,1736916646995,-150.0,0.0002,2]
[348985640,1736916647007,-151.0,0.0002,3]
[348985641,1736916647019,-742.49,0.0002,3]
[348985642,1736916647032,-631.69,0.0002,3]
[348985643,1736916647044,-500.0,0.0002,3]
[348985644,1736916647055,-151.0,0.0002,2]
[348985645,1736916647065,-151.0,0.0002,2]
[348985646,1736916647076,-550.31,0.0002,3]
[348985647,1736916647086,-500.0,0.0002,3]
[348985648,1736916647095,-500.0,0.0002,3]
[348985649,1736916647104,-500.0,0.0002,3]
[348985650,1736916647115,-500.0,0.0002,3]
[348985651,1736916647124,-500.0,0.0002,3]
[348985652,1736916647134,-500.0,0.0002,3]
[348985653,1736916647143,-691.61,0.0002,3]
[348985654,1736916647153,-261.93101736,0.0002,3]
[348985655,1736916647162,-500.0,0.0002,3]
[348985656,1736916647171,-500.0,0.0002,3]
[348985657,1736916647181,-474.469349,0.0002,2]
[348985658,1736916647191,-474.469349,0.0002,2]
[348985659,1736916647202,-474.469349,0.0002,2]
[348985660,1736916647211,-474.469355,0.0002,2]
[348985661,1736916647222,-205.204769,0.0002,2]
[348985662,1736916647231,-205.204776,0.0002,2]
[348985663,1736916647240,-500.0,0.0002,3]
[348985664,1736916647249,-500.0,0.0002,3]
[348985665,1736916647259,-500.0,0.0002,3]
[348985666,1736916647268,-500.0,0.0002,3]
[348985667,1736916647277,-633.68,0.0002,2]
[348985668,1736916647286,-228.219024,0.0002,2]
[348985669,1736916647296,-228.219032,0.0002,2]
[348985670,1736916647305,-500.0,0.0002,3]
[348985671,1736916647315,-3854.09,0.0002,3]
[348985672,1736916647324,-4218.29,0.0002,3]
[348985673,1736916647334,-290.33361743,0.0002,3]
[348985674,1736916647343,-926.75,0.0002,3]
[348985675,1736916647353,-168.85,0.0002,3]
[348985676,1736916647363,-1293.58,0.0002,3]
[348985677,1736916647373,-500.0,0.0002,3]
[348985678,1736916647382,-500.0,0.0002,3]
[348985679,1736916647391,-805.03,0.0002,3]
[348985680,1736916647400,-500.0,0.0002,3]
[348985681,1736916647410,-13667.5,0.0002,3]
[348985682,1736916647420,-655.22,0.0002,3]
[348985683,1736916647430,-1080.86,0.0002,3]
[348985684,1736916647439,-500.0,0.0002,3]
[348985685,1736916647449,-500.0,0.0002,3]
[348985686,1736916647459,-1373.43,0.0002,3]
[348985687,1736916647468,-1827.85,0.0002,3]
[348985688,1736916647477,-500.0,0.0002,3]
[348985689,1736916647487,-599.91,0.0002,3]
[348985690,1736916647496,-500.0,0.0002,3]
[348985691,1736916647506,-712.76,0.0002,3]
[348985692,1736916647515,-807.76,0.0002,3]
[348985693,1736916647525,-684.89,0.0002,3]
[348985694,1736916647534,-1567.61,0.0002,3]
[348985695,1736916647543,-500.0,0.0002,3]
[348985696,1736916647553,-500.0,0.0002,3]
[348985697,1736916647562,-500.0,0.0002,3]
[348985698,1736916647572,-757.07,0.0002,3]
[348985699,1736916647581,-222.78,0.0002,3]
[348985700,1736916647590,-706.38,0.0002,3]
[348985701,1736916647600,-596.85111797,0.0002,3]
[348985702,1736916647609,-500.0,0.0002,3]
[348985703,1736916647619,-500.0,0.0002,3]
[348985704,1736916647628,-500.0,0.0002,3]
[348985705,1736916647638,-3983.37,0.0002,3]
[348985706,1736916647647,-500.0,0.0002,3]
[348985707,1736916647657,-500.0,0.0002,3]
[348985708,1736916647666,-500.0,0.0002,3]
[348985709,1736916647675,-5135.68,0.0002,2]
[348985710,1736916647684,-4712.04,0.0002,3]
[348985711,1736916647694,-624.76,0.0002,3]
[348985712,1736916647705,-673.49,0.0002,3]
[348985713,1736916647715,-610.45,0.0002,3]
[348985714,1736916647725,-550.77,0.0002,3]
[348985715,1736916647735,-2486.58,0.0002,3]
[348985716,1736916647744,-500.0,0.0002,3]
[348985717,1736916647754,-151.0,0.0002,2]
[348985718,1736916647763,-500.0,0.0002,3]
[348985719,1736916647772,-510.69596999,0.00020021,2]
[348985720,1736916647782,-502.23887962,0.00020021,2]
[348985721,1736916647791,-2570.79198281,0.00020036,2]
[348985722,1736916647801,-620.0,0.000201,2]
[348985723,1736916647810,-243.22012971,0.00020107,2]
[348985724,1736916647820,-742.49,0.00020136,3]
[348985725,1736916647830,-631.69,0.00020136,3]
[348985726,1736916647839,-500.0,0.00020136,3]
[348985727,1736916647848,-151.0,0.00020136,2]
[348985728,1736916647858,-550.31,0.00020136,3]
[348985729,1736916647868,-500.0,0.00020136,3]
[348985730,1736916647971,-596.75,0.00020136,3]
[348985731,1736916647981,-500.0,0.00020136,3]
[348985732,1736916647991,-309.58,0.00020136,3]
[348985733,1736916648001,-500.0,0.00020136,3]
[348985734,1736916648011,-442.76,0.00020136,3]
[348985735,1736916648021,-691.61,0.00020136,3]
[348985736,1736916648031,-500.0,0.00020136,3]
[348985737,1736916648040,-500.0,0.00020136,3]
[348985738,1736916648050,-500.0,0.00020136,3]
[348985739,1736916648059,-500.0,0.00020136,3]
[348985740,1736916648069,-500.0,0.00020136,3]
[348985741,1736916648079,-633.68,0.00020136,2]
[348985742,1736916648088,-500.0,0.00020136,3]
[348985743,1736916648098,-3854.09,0.00020136,3]
[348985744,1736916648107,-4218.29,0.00020136,3]
[348985745,1736916648117,-926.75,0.00020136,3]
[348985746,1736916648127,-1293.58,0.00020136,3]
[348985747,1736916648137,-390.20903502,0.00020136,3]
[348985748,1736916648146,-500.0,0.00020136,3]
[348985749,1736916648156,-805.03,0.00020136,3]
[348985750,1736916648166,-500.0,0.00020136,3]
[348985751,1736916648175,-13667.5,0.00020136,3]
[348985752,1736916648185,-655.22,0.00020136,3]
[348985753,1736916648196,-1080.86,0.00020136,3]
[348985754,1736916648206,-500.0,0.00020136,3]
[348985755,1736916648216,-500.0,0.00020136,3]
[348985756,1736916648226,-1373.43,0.00020136,3]
[348985757,1736916648235,-1827.85,0.00020136,3]
[348985758,1736916648245,-500.0,0.00020136,3]
[348985759,1736916648255,-599.91,0.00020136,3]
[348985760,1736916648265,-439.82,0.00020136,3]
[348985761,1736916648275,-712.76,0.00020136,3]
[348985762,1736916648284,-807.76,0.00020136,3]
[348985763,1736916648294,-684.89,0.00020136,3]
[348985764,1736916648303,-1567.61,0.00020136,3]
[348985765,1736916648313,-500.0,0.00020136,3]
[348985766,1736916648322,-500.0,0.00020136,3]
[348985767,1736916648332,-757.07,0.00020136,3]
[348985768,1736916648341,-500.0,0.00020136,3]
[348985769,1736916648351,-706.38,0.00020136,3]
[348985770,1736916648361,-643.62777422,0.00020136,3]
[348985771,1736916648371,-375.85244499,0.00020136,3]
[348985772,1736916648381,-500.0,0.00020136,3]
[348985773,1736916648391,-3983.37,0.00020136,3]
[348985774,1736916648401,-500.0,0.00020136,3]
[348985775,1736916648411,-500.0,0.00020136,3]
[348985776,1736916648421,-630.45,0.00020136,3]
[348985777,1736916648431,-5135.68,0.00020136,2]
[348985778,1736916648441,-4712.04,0.00020136,3]
[348985779,1736916648454,-624.76,0.00020136,3]
[348985780,1736916648464,-673.49,0.00020136,3]
[348985781,1736916648474,-610.45,0.00020136,3]
[348985782,1736916648483,-550.77,0.00020136,3]
[348985783,1736916648494,-2486.58,0.00020136,3]
[348985784,1736916648504,-500.0,0.00020136,3]
[348985785,1736916648514,-500.0,0.00020136,3]
[348985786,1736916648523,-151.0,0.000202,3]
[348985787,1736916648533,-429.34638795,0.00020221,2]
[348985788,1736916648544,-500.0,0.00020221,2]
[348985789,1736916648554,-150.555,0.00020231,2]
[348985790,1736916648563,-537.127,0.00020231,2]
[348985791,1736916648573,-2090.829,0.00020231,2]
[348985792,1736916648582,-2331.833,0.00020231,2]
[348985793,1736916648591,-395.0,0.00020231,2]
[348985794,1736916648601,-180.472,0.00020231,2]
[348985795,1736916648611,-564.33329284,0.00020257,2]
[348985796,1736916648621,-500.51504874,0.00020264,2]
[348985797,1736916648631,-500.19273514,0.00020264,2]
[348985798,1736916648641,-500.3037617,0.00020264,2]
[348985799,1736916648651,-500.0,0.00020264,2]
[348985800,1736916648661,-500.0,0.00020264,2]
[348985801,1736916648671,-500.0,0.00020264,2]
[348985802,1736916648681,-500.0,0.00020264,2]
[348985803,1736916648691,-500.0,0.00020264,2]
[348985804,1736916648705,-742.49,0.00020273,3]
[348985805,1736916648715,-631.69,0.00020273,3]
[348985806,1736916648725,-460.16,0.00020273,3]
[348985807,1736916648735,-550.31,0.00020273,3]
[348985808,1736916648745,-500.0,0.00020273,3]
[348985809,1736916648755,-500.0,0.00020273,3]
[348985810,1736916648765,-500.0,0.00020273,3]
[348985811,1736916648775,-691.61,0.00020273,3]
[348985812,1736916648785,-500.0,0.00020273,3]
[348985813,1736916648795,-239.29,0.00020273,3]
[348985814,1736916648805,-500.0,0.00020273,3]
[348985815,1736916648816,-321.17,0.00020273,3]
[348985816,1736916648826,-478.95,0.00020273,3]
[348985817,1736916648835,-633.68,0.00020273,2]
[348985818,1736916648845,-500.0,0.00020273,3]
[348985819,1736916648855,-3854.09,0.00020273,3]
[348985820,1736916648865,-4218.29,0.00020273,3]
[348985821,1736916648875,-926.75,0.00020273,3]
[348985822,1736916648885,-1293.58,0.00020273,3]
[348985823,1736916648894,-500.0,0.00020273,3]
[348985824,1736916648904,-805.03,0.00020273,3]
[348985825,1736916648914,-500.0,0.00020273,3]
[348985826,1736916648924,-13667.5,0.00020273,3]
[348985827,1736916648934,-655.22,0.00020273,3]
[348985828,1736916648944,-1080.86,0.00020273,3]
[348985829,1736916648958,-500.0,0.00020273,3]
[348985830,1736916648969,-500.0,0.00020273,3]
[348985831,1736916648979,-1373.43,0.00020273,3]
[348985832,1736916648989,-1827.85,0.00020273,3]
[348985833,1736916649000,-500.0,0.00020273,3]
[348985834,1736916649009,-599.91,0.00020273,3]
[348985835,1736916649019,-712.76,0.00020273,3]
[348985836,1736916649031,-807.76,0.00020273,3]
[348985837,1736916649041,-684.89,0.00020273,3]
[348985838,1736916649051,-1567.61,0.00020273,3]
[348985839,1736916649061,-500.0,0.00020273,3]
[348985840,1736916649071,-500.0,0.00020273,3]
[348985841,1736916649080,-757.07,0.00020273,3]
[348985842,1736916649090,-500.0,0.00020273,3]
[348985843,1736916649099,-706.38,0.00020273,3]
[348985844,1736916649109,-434.3809904,0.00020273,3]
[348985845,1736916649119,-3983.37,0.00020273,3]
[348985846,1736916649128,-500.0,0.00020273,3]
[348985847,1736916649138,-606.33408695,0.00020273,3]
[348985848,1736916649148,-5135.68,0.00020273,2]
[348985849,1736916649157,-4712.04,0.00020273,3]
[348985850,1736916649167,-624.76,0.00020273,3]
[348985851,1736916649177,-673.49,0.00020273,3]
[348985852,1736916649187,-610.45,0.00020273,3]
[348985853,1736916649198,-550.77,0.00020273,3]
[348985854,1736916649208,-2486.58,0.00020273,3]
[348985855,1736916649218,-500.0,0.00020273,3]
[348985856,1736916649228,-500.0,0.00020273,3]
[348985857,1736916649238,-1000.0,0.00020278,2]
[348985858,1736916649248,-243.22012971,0.00020279,2]
[348985859,1736916649258,-1000.0,0.0002028,2]
[348985860,1736916649268,-151.0,0.000203,4]
[348985861,1736916649277,-1000.0,0.00020315,2]
[348985862,1736916649287,-1000.0,0.00020348,2]
[348985863,1736916649296,-14563.05513685,0.000204,2]
[348985864,1736916649306,-14563.05513685,0.000204,2]
[348985865,1736916649315,-14563.05513685,0.000204,2]
[348985866,1736916649325,-12233.12,0.000204,2]
[348985867,1736916649334,-2553.53,0.000204,2]
[348985868,1736916649344,-1000.0,0.00020405,2]
[348985869,1736916649354,-742.49,0.0002041,3]
[348985870,1736916649363,-631.69,0.0002041,3]
[348985871,1736916649373,-550.31,0.0002041,3]
[348985872,1736916649383,-500.0,0.0002041,3]
[348985873,1736916649394,-500.0,0.0002041,3]
[348985874,1736916649404,-500.0,0.0002041,3]
[348985875,1736916649413,-691.61,0.0002041,3]
[348985876,1736916649423,-500.0,0.0002041,3]
[348985877,1736916649433,-500.0,0.0002041,3]
[348985878,1736916649443,-633.68,0.0002041,2]
[348985879,1736916649454,-500.0,0.0002041,3]
[348985880,1736916649463,-3854.09,0.0002041,3]
[348985881,1736916649473,-4218.29,0.0002041,3]
[348985882,1736916649483,-926.75,0.0002041,3]
[348985883,1736916649495,-1293.58,0.0002041,3]
[348985884,1736916649506,-500.0,0.0002041,3]
[348985885,1736916649516,-805.03,0.0002041,3]
[348985886,1736916649525,-500.0,0.0002041,3]
[348985887,1736916649536,-13667.5,0.0002041,3]
[348985888,1736916649545,-655.22,0.0002041,3]
[348985889,1736916649556,-1080.86,0.0002041,3]
[348985890,1736916649567,-500.0,0.0002041,3]
[348985891,1736916649578,-500.0,0.0002041,3]
[348985892,1736916649587,-1373.43,0.0002041,3]
[348985893,1736916649597,-1827.85,0.0002041,3]
[348985894,1736916649607,-500.0,0.0002041,3]
[348985895,1736916649617,-599.91,0.0002041,3]
[348985896,1736916649627,-712.76,0.0002041,3]
[348985897,1736916649637,-807.76,0.0002041,3]
[348985898,1736916649647,-684.89,0.0002041,3]
[348985899,1736916649656,-1567.61,0.0002041,3]
[348985900,1736916649665,-500.0,0.0002041,3]
[348985901,1736916649675,-500.0,0.0002041,3]
[348985902,1736916649685,-757.07,0.0002041,3]
[348985903,1736916649694,-500.0,0.0002041,3]
[348985904,1736916649705,-706.38,0.0002041,3]
[348985905,1736916649715,-3983.37,0.0002041,3]
[348985906,1736916649725,-500.0,0.0002041,3]
[348985907,1736916649735,-5135.68,0.0002041,2]
[348985908,1736916649745,-4712.04,0.0002041,3]
[348985909,1736916649755,-624.76,0.0002041,3]
[348985910,1736916649765,-673.49,0.0002041,3]
[348985911,1736916649774,-610.45,0.0002041,3]
[348985912,1736916649783,-550.77,0.0002041,3]
[348985913,1736916649793,-2486.58,0.0002041,3]
[348985914,1736916649802,-509.005628,0.0002041,3]
[348985915,1736916649812,-500.0,0.0002041,3]
[348985916,1736916649821,-794.46572101,0.00020424,2]
[348985917,1736916649830,-2570.79198279,0.00020434,2]
[348985918,1736916649839,-379.764613,0.00020447,2]
[348985919,1736916649849,-14563.05513685,0.0002045,2]
[348985920,1736916649858,-1000.0,0.00020451,2]
[348985921,1736916649868,-160.0,0.00020451,3]
[348985922,1736916649878,-243.22012971,0.00020452,2]
[348985923,1736916649888,-1000.0,0.00020477,2]
[348985924,1736916649897,-1000.0,0.00020483,2]
[348985925,1736916649906,-1000.0,0.000205,2]
[348985926,1736916649915,-1627.288577,0.000205,2]
[348985927,1736916649925,-150.349382,0.000205,2]
[348985928,1736916649934,-1000.0,0.00020531,2]
[348985929,1736916649943,-1000.0,0.00020532,2]
[348985930,1736916649954,-742.49,0.00020547,3]
[348985931,1736916649968,-631.69,0.00020547,3]
[348985932,1736916649978,-550.31,0.00020547,3]
[348985933,1736916649987,-500.0,0.00020547,3]
[348985934,1736916649998,-500.0,0.00020547,3]
[348985935,1736916650008,-500.0,0.00020547,3]
[348985936,1736916650019,-691.61,0.00020547,3]
[348985937,1736916650028,-500.0,0.00020547,3]
[348985938,1736916650038,-500.0,0.00020547,3]
[348985939,1736916650048,-633.68,0.00020547,2]
[348985940,1736916650058,-500.0,0.00020547,3]
[348985941,1736916650067,-3854.09,0.00020547,3]
[348985942,1736916650077,-4218.29,0.00020547,3]
[348985943,1736916650087,-926.75,0.00020547,3]
[348985944,1736916650097,-1293.58,0.00020547,3]
[348985945,1736916650193,-500.0,0.00020547,3]
[348985946,1736916650203,-805.03,0.00020547,3]
[348985947,1736916650213,-500.0,0.00020547,3]
[348985948,1736916650223,-13667.5,0.00020547,3]
[348985949,1736916650233,-655.22,0.00020547,3]
[348985950,1736916650242,-1080.86,0.00020547,3]
[348985951,1736916650253,-500.0,0.00020547,3]